fUST/lending_fUST_20240805
["ID","MTS","AMOUNT","RATE_DAILY","PERIOD"]
[334241585,1722855058209,-534.0376873,0.00042739,31]
[334241586,1722855058219,-1035.038885,0.00042739,14]
[334241587,1722855058228,-500.0,0.00042739,31]
[334241588,1722855058238,-500.0,0.00042739,31]
[334241589,1722855058248,-4819.05,0.00042739,31]
[334241590,1722855058258,-500.0,0.00042739,31]
[334241591,1722855058268,-2369.35,0.00042739,31]
[334241592,1722855058278,-500.0,0.00042739,31]
[334241593,1722855058288,-14683.88,0.00042739,120]
[334241594,1722855058297,-3808.57,0.00042739,31]
[334241595,1722855058306,-1143.54,0.00042739,31]
[334241596,1722855058316,-500.0,0.00042739,31]
[334241597,1722855058325,-152.0,0.0004274,31]
[334241598,1722855058335,-152.0,0.0004274,31]
[334241599,1722855058344,-4912.9280504,0.000428,60]
[334241600,1722855058354,-1172.25457751,0.000428,60]
[334241601,1722855058364,-1118.31108885,0.000428,60]
[334241602,1722855058373,-602.87972025,0.000428,60]
[334241603,1722855058681,-1385.93,0.00041095,31]
[334241604,1722855058691,-4033.44511755,0.000428,60]
[334241605,1722855059032,-642.36,0.00041095,31]
[334241606,1722855059049,-1385.93,0.00041643,31]
[334241607,1722855059063,-642.36,0.00041643,31]
[334241608,1722855059076,-235.52774681,0.00042191,31]
[334241609,1722855717542,-161.182861,0.00014247,2]
[334241612,1722855855509,5258.817139,0.00014247,2]
[334241613,1722855856036,-271.8,0.0003,120]
[334241614,1722855856083,-520.0,0.00034,120]
[334241615,1722855856126,-300.0,0.00036,120]
[334241616,1722855856170,-300.0,0.00038,120]
[334241617,1722855856220,-10225.15,0.000398,120]
[334241618,1722855856260,-300.0,0.0004,120]
[334241619,1722855856301,-10225.15,0.0004053,120]
[334241620,1722855856342,-5112.574999,0.000407,120]
[334241621,1722855856550,-9399.47919098,0.000408,30]
[334241622,1722855856592,-1301.0,0.00041,120]
[334241623,1722855856632,-10225.15,0.00041,120]
[334241624,1722855856672,-265.41,0.0004107,120]
[334241625,1722855856722,-150.5,0.0004107,120]
[334241626,1722855856763,-150.5,0.0004108,120]
[334241627,1722855856807,-150.5,0.0004108,120]
[334241628,1722855856850,-150.5,0.0004109,120]
[334241629,1722855856893,-150.5,0.0004109,120]
[334241630,1722855856933,-500.0,0.00041094,31]
[334241631,1722855856974,-548.75530962,0.00041094,31]
[334241632,1722855857013,-500.0,0.00041095,31]
[334241633,1722855857053,-500.0,0.00041095,31]
[334241634,1722855857098,-500.0,0.00041095,31]
[334241635,1722855857141,-500.0,0.00041095,31]
[334241636,1722855857181,-500.0,0.00041095,31]
[334241637,1722855857226,-180.10871493,0.00041095,31]
[334241638,1722855857266,-637.44590169,0.00041095,31]
[334241639,1722855857307,-500.0,0.00041095,31]
[334241640,1722855857349,-511.14709064,0.00041095,31]
[334241641,1722855857391,-500.0,0.00041095,31]
[334241642,1722855857431,-500.0,0.00041095,31]
[334241643,1722855857479,-500.0,0.00041095,31]
[334241644,1722855857522,-500.0,0.00041095,31]
[334241645,1722855857565,-500.0,0.00041095,31]
[334241646,1722855857607,-500.0,0.00041095,31]
[334241647,1722855857652,-500.0,0.00041095,31]
[334241648,1722855857696,-500.0,0.00041095,31]
[334241649,1722855857750,-500.0,0.00041095,31]
[334241650,1722855857793,-648.07,0.00041095,31]
[334241651,1722855857838,-629.74,0.00041095,31]
[334241652,1722855857881,-500.0,0.00041095,31]
[334241653,1722855857924,-500.0,0.00041095,31]
[334241654,1722855857977,-1276.5,0.00041095,31]
[334241655,1722855858019,-500.0,0.00041095,31]
[334241656,1722855858060,-500.0,0.00041095,31]
[334241657,1722855858104,-500.0,0.00041095,31]
[334241658,1722855858147,-500.0,0.00041095,31]
[334241659,1722855858187,-500.0,0.00041095,31]
[334241660,1722855858231,-500.0,0.00041095,31]
[334241661,1722855858276,-556.09,0.00041095,31]
[334241662,1722855858324,-500.0,0.00041095,31]
[334241663,1722855858370,-500.0,0.00041095,31]
[334241664,1722855858413,-500.0,0.00041095,31]
[334241665,1722855858455,-500.0,0.00041095,31]
[334241666,1722855858509,-500.0,0.00041095,31]
[334241667,1722855858550,-500.0,0.00041095,31]
[334241668,1722855858597,-500.0,0.00041095,31]
[334241669,1722855858644,-823.07,0.00041095,31]
[334241670,1722855858691,-500.0,0.00041095,31]
[334241671,1722855858736,-500.0,0.00041095,31]
[334241672,1722855858780,-516.44845626,0.00041095,31]
[334241673,1722855858824,-500.0,0.00041095,31]
[334241674,1722855858870,-500.0,0.00041095,31]
[334241675,1722855858916,-500.0,0.00041095,31]
[334241676,1722855858969,-500.0,0.00041095,31]
[334241677,1722855859018,-500.0,0.00041095,31]
[334241678,1722855859067,-500.0,0.00041095,31]
[334241679,1722855859113,-500.0,0.00041095,31]
[334241680,1722855859159,-500.0,0.00041095,31]
[334241681,1722855859205,-500.0,0.00041095,31]
[334241682,1722855859261,-500.0,0.00041095,31]
[334241683,1722855859306,-329.40154517,0.00041095,31]
[334241684,1722855859350,-500.0,0.00041095,31]
[334241685,1722855859396,-500.0,0.00041095,31]
[334241686,1722855859441,-500.0,0.00041095,31]
[334241687,1722855859495,-574.39,0.00041095,31]
[334241688,1722855859538,-595.43,0.00041095,31]
[334241689,1722855859579,-500.0,0.00041095,31]
[334241690,1722855859621,-500.0,0.00041095,31]
[334241691,1722855859664,-500.0,0.00041095,31]
[334241692,1722855859704,-866.48,0.00041095,31]
[334241693,1722855859754,-514.52073945,0.00041095,31]
[334241694,1722855859793,-500.0,0.00041095,31]
[334241695,1722855859833,-500.0,0.00041095,31]
[334241696,1722855859874,-500.0,0.00041095,31]
[334241697,1722855859919,-331.33096028,0.00041095,31]
[334241698,1722855859972,-500.0,0.00041095,31]
[334241699,1722855860017,-590.56,0.00041095,31]
[334241700,1722855860060,-500.0,0.00041095,31]
[334241701,1722855860106,-500.0,0.00041095,31]
[334241702,1722855860148,-500.0,0.00041095,31]
[334241703,1722855860191,-500.0,0.00041095,31]
[334241704,1722855860230,-500.0,0.00041095,31]
[334241705,1722855860274,-500.0,0.00041095,31]
[334241706,1722855860316,-500.0,0.00041095,31]
[334241707,1722855860357,-902.94,0.00041095,31]
[334241708,1722855860396,-253.61457286,0.00041095,31]
[334241709,1722855860439,-500.0,0.00041095,31]
[334241710,1722855860480,-500.0,0.00041095,31]
[334241711,1722855860523,-500.0,0.00041095,31]
[334241712,1722855860567,-500.0,0.00041095,31]
[334241713,1722855860608,-500.0,0.00041095,31]
[334241714,1722855860648,-500.0,0.00041095,31]
[334241715,1722855860688,-505.89657233,0.00041095,31]
[334241716,1722855860731,-500.0,0.00041095,31]
[334241717,1722855860774,-500.0,0.00041095,31]
[334241718,1722855860816,-500.0,0.00041095,31]
[334241719,1722855860857,-500.0,0.00041095,31]
[334241720,1722855860898,-500.0,0.00041095,31]
[334241721,1722855860937,-500.0,0.00041095,31]
[334241722,1722855860976,-500.0,0.00041095,31]
[334241723,1722855861013,-1022.66,0.00041095,31]
[334241724,1722855861051,-524.787987,0.00041095,31]
[334241725,1722855861246,-500.0,0.00041095,31]
[334241726,1722855861289,-943.74,0.00041095,31]
[334241727,1722855861329,-500.0,0.00041095,31]
[334241728,1722855861369,-500.0,0.00041095,31]
[334241729,1722855861409,-1053.19,0.00041095,31]
[334241730,1722855861446,-500.0,0.00041095,31]
[334241731,1722855861492,-584.69,0.00041095,31]
[334241732,1722855861530,-1305.1,0.00041095,31]
[334241733,1722855861568,-500.0,0.00041095,31]
[334241734,1722855861605,-500.0,0.00041095,31]
[334241735,1722855861643,-500.0,0.00041095,31]
[334241736,1722855861680,-553.49,0.00041095,31]
[334241737,1722855861724,-296.61809326,0.00041095,31]
[334241738,1722855861762,-500.0,0.00041095,31]
[334241739,1722855861798,-500.0,0.00041095,31]
[334241740,1722855861835,-500.0,0.00041095,31]
[334241741,1722855861874,-500.0,0.00041095,31]
[334241742,1722855861914,-500.0,0.00041095,31]
[334241743,1722855861954,-500.0,0.00041095,31]
[334241744,1722855862002,-898.41,0.00041095,31]
[334241745,1722855862041,-500.0,0.00041095,31]
[334241746,1722855862086,-500.0,0.00041095,31]
[334241747,1722855862127,-500.0,0.00041095,31]
[334241748,1722855862167,-415.29791035,0.00041095,31]
[334241749,1722855862206,-500.0,0.00041095,31]
[334241750,1722855862256,-500.0,0.00041095,31]
[334241751,1722855862296,-989.94,0.00041095,31]
[334241752,1722855862337,-500.0,0.00041095,31]
[334241753,1722855862376,-500.0,0.00041095,31]
[334241754,1722855862415,-500.0,0.00041095,31]
[334241755,1722855862456,-613.99,0.00041095,31]
[334241756,1722855862503,-500.0,0.00041095,31]
[334241757,1722855862544,-530.57,0.00041095,31]
[334241758,1722855862583,-500.0,0.00041095,31]
[334241759,1722855862624,-500.0,0.00041095,31]
[334241760,1722855862667,-616.76,0.00041095,31]
[334241761,1722855862710,-152.75957297,0.00041095,31]
[334241762,1722855862752,-500.0,0.00041095,31]
[334241763,1722855862793,-694.59,0.00041095,31]
[334241764,1722855862835,-1013.28,0.00041095,31]
[334241765,1722855862877,-500.0,0.00041095,31]
[334241766,1722855862919,-8149.15,0.00041095,31]
[334241767,1722855862960,-500.0,0.00041095,31]
[334241768,1722855863010,-2171.38,0.00041095,31]
[334241769,1722855863048,-867.75,0.00041095,31]
[334241770,1722855863090,-517.60272953,0.00041095,31]
[334241771,1722855863128,-500.0,0.00041095,31]
[334241772,1722855863167,-13964.26,0.00041095,31]
[334241773,1722855863204,-500.0,0.00041095,31]
[334241774,1722855863249,-623.8,0.00041095,31]
[334241775,1722855863287,-500.0,0.00041095,31]
[334241776,1722855863327,-1321.46,0.00041095,31]
[334241777,1722855863366,-500.0,0.00041095,31]
[334241778,1722855863405,-500.0,0.00041095,31]
[334241779,1722855863443,-500.0,0.00041095,31]
[334241780,1722855863484,-781.23,0.00041095,31]
[334241781,1722855863521,-500.0,0.00041095,31]
[334241782,1722855863558,-615.54,0.00041095,31]
[334241783,1722855863600,-952.95,0.00041095,31]
[334241784,1722855863641,-538.82,0.00041095,31]
[334241785,1722855863681,-500.0,0.00041095,31]
[334241786,1722855863728,-500.0,0.00041095,31]
[334241787,1722855863768,-500.0,0.00041095,31]
[334241788,1722855863810,-1921.77,0.00041095,31]
[334241789,1722855863851,-2841.01,0.00041095,31]
[334241790,1722855863895,-500.0,0.00041095,31]
[334241791,1722855863941,-500.0,0.00041095,31]
[334241792,1722855863987,-500.0,0.00041095,31]
[334241793,1722855864034,-629.38,0.00041095,31]
[334241794,1722855864081,-720.86,0.00041095,31]
[334241795,1722855864125,-500.0,0.00041095,31]
[334241796,1722855864167,-500.0,0.00041095,30]
[334241797,1722855864211,-3289.33,0.00041095,31]
[334241798,1722855864262,-702.68,0.00041095,31]
[334241799,1722855864305,-500.0,0.00041095,31]
[334241800,1722855864345,-500.0,0.00041095,31]
[334241801,1722855864384,-500.0,0.00041095,31]
[334241802,1722855864421,-500.0,0.00041095,31]
[334241803,1722855864461,-500.0,0.00041095,31]
[334241804,1722855864512,-500.0,0.00041095,31]
[334241805,1722855864553,-500.0,0.00041095,31]
[334241806,1722855864594,-2296.59,0.00041095,31]
[334241807,1722855864633,-1814.25,0.00041095,31]
[334241808,1722855864672,-500.0,0.00041095,31]
[334241809,1722855864713,-500.0,0.00041095,31]
[334241810,1722855864763,-753.6,0.00041095,31]
[334241811,1722855864805,-1640.04,0.00041095,31]
[334241812,1722855864847,-4120.74,0.00041095,31]
[334241813,1722855864890,-500.0,0.00041095,31]
[334241814,1722855864930,-628.99534733,0.00041095,31]
[334241815,1722855864980,-500.0,0.00041095,31]
[334241816,1722855865022,-500.0,0.00041095,31]
[334241817,1722855865067,-500.0,0.00041095,31]
[334241818,1722855865108,-303.37022759,0.00041095,31]
[334241819,1722855865150,-889.04,0.00041095,31]
[334241820,1722855865191,-500.0,0.00041095,31]
[334241821,1722855865233,-500.0,0.00041095,31]
[334241822,1722855865274,-500.0,0.00041095,31]
[334241823,1722855865315,-500.0,0.00041095,31]
[334241824,1722855865357,-500.0,0.00041095,31]
[334241825,1722855865400,-500.0,0.00041095,31]
[334241826,1722855865444,-500.0,0.00041095,31]
[334241827,1722855865487,-505.33,0.00041095,31]
[334241828,1722855865533,-500.0,0.00041095,31]
[334241829,1722855865576,-500.0,0.00041095,31]
[334241830,1722855865756,-1260.62,0.00041095,31]
[334241831,1722855865800,-500.0,0.00041095,31]
[334241832,1722855865841,-500.0,0.00041095,31]
[334241833,1722855865883,-573.31,0.00041095,31]
[334241834,1722855865925,-790.04,0.00041095,31]
[334241835,1722855865971,-1310.1,0.00041095,31]
[334241836,1722855866010,-500.0,0.00041095,31]
[334241837,1722855866048,-994.56,0.00041095,31]
[334241838,1722855866088,-7984.69,0.00041095,31]
[334241839,1722855866128,-500.0,0.00041095,31]
[334241840,1722855866170,-549.92,0.00041095,31]
[334241841,1722855866223,-500.0,0.00041095,31]
[334241842,1722855866265,-6173.34,0.00041095,31]
[334241843,1722855866304,-500.0,0.00041095,31]
[334241844,1722855866343,-500.0,0.00041095,31]
[334241845,1722855866382,-908.96,0.00041095,31]
[334241846,1722855866420,-727.99,0.00041095,31]
[334241847,1722855866459,-1072.4,0.00041095,31]
[334241848,1722855866507,-500.0,0.00041095,31]
[334241849,1722855866545,-542.21828973,0.00041095,31]
[334241850,1722855866582,-500.0,0.00041095,31]
[334241851,1722855866620,-500.0,0.00041095,31]
[334241852,1722855866658,-500.0,0.00041095,31]
[334241853,1722855866696,-500.0,0.00041095,31]
[334241854,1722855866735,-9665.63,0.00041095,31]
[334241855,1722855866774,-857.1,0.00041095,31]
[334241856,1722855866814,-1424.37,0.00041095,31]
[334241857,1722855866853,-500.0,0.00041095,31]
[334241858,1722855866891,-500.0,0.00041095,31]
[334241859,1722855866930,-500.0,0.00041095,31]
[334241860,1722855866977,-500.0,0.00041095,31]
[334241861,1722855867018,-803.81,0.00041095,31]
[334241862,1722855867063,-825.94,0.00041095,31]
[334241863,1722855867107,-12236.57,0.00041095,120]
[334241864,1722855867149,-500.0,0.00041095,31]
[334241865,1722855867195,-500.0,0.00041095,31]
[334241866,1722855867239,-500.0,0.00041095,31]
[334241867,1722855867282,-3748.41,0.00041095,31]
[334241868,1722855867324,-4015.88,0.00041095,31]
[334241869,1722855867369,-500.0,0.00041095,31]
[334241870,1722855867410,-2909.32,0.00041095,31]
[334241871,1722855867451,-500.0,0.00041095,31]
[334241872,1722855867499,-500.0,0.00041095,31]
[334241873,1722855867539,-500.0,0.00041095,31]
[334241874,1722855867582,-500.0,0.00041095,31]
[334241875,1722855867624,-767.28,0.00041095,31]
[334241876,1722855867665,-500.0,0.00041095,31]
[334241877,1722855867706,-500.0,0.00041095,31]
[334241878,1722855867755,-1174.29,0.00041095,31]
[334241879,1722855867799,-1014.51,0.00041095,31]
[334241880,1722855867846,-500.0,0.00041095,31]
[334241881,1722855867890,-500.0,0.00041095,31]
[334241882,1722855867934,-754.85,0.00041095,31]
[334241883,1722855867982,-1374.17,0.00041095,31]
[334241884,1722855868026,-1031.24,0.00041095,31]
[334241885,1722855868066,-500.0,0.00041095,31]
[334241886,1722855868109,-500.0,0.00041095,31]
[334241887,1722855868151,-500.0,0.00041095,31]
[334241888,1722855868193,-211.2085365,0.00041095,31]
[334241889,1722855868232,-500.0,0.00041095,31]
[334241890,1722855868272,-670.71,0.00041095,31]
[334241891,1722855868313,-500.0,0.00041095,31]
[334241892,1722855868355,-500.0,0.00041095,31]
[334241893,1722855868395,-2005.0,0.00041095,31]
[334241894,1722855868435,-1974.46,0.00041095,31]
[334241895,1722855868477,-1304.72,0.00041095,31]
[334241896,1722855868514,-500.0,0.00041095,31]
[334241897,1722855868552,-223.69320676,0.00041095,31]
[334241898,1722855868593,-500.0,0.00041095,31]
[334241899,1722855868636,-283.92601512,0.00041095,31]
[334241900,1722855868678,-500.0,0.00041095,31]
[334241901,1722855868724,-500.0,0.00041095,31]
[334241902,1722855868766,-500.0,0.00041095,31]
[334241903,1722855868811,-500.0,0.00041095,31]
[334241904,1722855868854,-552.41,0.00041095,31]
[334241905,1722855868898,-939.28,0.00041095,31]
[334241906,1722855868942,-524.54,0.00041095,31]
[334241907,1722855868988,-500.0,0.00041095,31]
[334241908,1722855869034,-6176.67,0.00041095,31]
[334241909,1722855869078,-1355.54,0.00041095,31]
[334241910,1722855869121,-782.29,0.00041095,31]
[334241911,1722855869165,-500.0,0.00041095,31]
[334241912,1722855869207,-820.99,0.00041095,31]
[334241913,1722855869255,-982.1,0.00041095,31]
[334241914,1722855869297,-500.0,0.00041095,31]
[334241915,1722855869339,-550.61264332,0.00041095,31]
[334241916,1722855869379,-500.0,0.00041095,31]
[334241917,1722855869419,-500.0,0.00041095,31]
[334241918,1722855869458,-500.0,0.00041095,31]
[334241919,1722855869505,-1011.48,0.00041095,31]
[334241920,1722855869546,-640.04,0.00041095,31]
[334241921,1722855869588,-1102.87,0.00041095,31]
[334241922,1722855869629,-163.09,0.00041623,120]
[334241923,1722855869671,-150.5,0.00041633,120]
[334241924,1722855869715,-581.21198182,0.00041643,31]
[334241925,1722855869764,-500.0,0.00041643,31]
[334241926,1722855869804,-500.0,0.00041643,31]
[334241927,1722855869844,-500.0,0.00041643,31]
[334241928,1722855869884,-500.0,0.00041643,31]
[334241929,1722855869927,-500.0,0.00041643,31]
[334241930,1722855869974,-500.0,0.00041643,31]
[334241931,1722855870015,-500.0,0.00041643,31]
[334241932,1722855870058,-500.0,0.00041643,31]
[334241933,1722855870105,-206.11760614,0.00041643,31]
[334241934,1722855870294,-500.0,0.00041643,31]
[334241935,1722855870336,-500.0,0.00041643,31]
[334241936,1722855870377,-500.0,0.00041643,31]
[334241937,1722855870418,-500.0,0.00041643,31]
[334241938,1722855870461,-500.0,0.00041643,31]
[334241939,1722855870510,-648.07,0.00041643,31]
[334241940,1722855870551,-629.74,0.00041643,31]
[334241941,1722855870594,-500.0,0.00041643,31]
[334241942,1722855870636,-500.0,0.00041643,31]
[334241943,1722855870679,-1276.5,0.00041643,31]
[334241944,1722855870728,-500.0,0.00041643,31]
[334241945,1722855870771,-500.0,0.00041643,31]
[334241946,1722855870813,-500.0,0.00041643,31]
[334241947,1722855870858,-500.0,0.00041643,31]
[334241948,1722855870900,-556.09,0.00041643,31]
[334241949,1722855870941,-500.0,0.00041643,31]
[334241950,1722855870983,-500.0,0.00041643,31]
[334241951,1722855871021,-500.0,0.00041643,31]
[334241952,1722855871060,-500.0,0.00041643,31]
[334241953,1722855871099,-823.07,0.00041643,31]
[334241954,1722855871138,-636.47570336,0.00041643,31]
[334241955,1722855871177,-500.0,0.00041643,31]
[334241956,1722855871214,-500.0,0.00041643,31]
[334241957,1722855871262,-500.0,0.00041643,31]
[334241958,1722855871299,-500.0,0.00041643,31]
[334241959,1722855871338,-500.0,0.00041643,31]
[334241960,1722855871376,-500.0,0.00041643,31]
[334241961,1722855871417,-500.0,0.00041643,31]
[334241962,1722855871457,-500.0,0.00041643,31]
[334241963,1722855871501,-500.0,0.00041643,31]
[334241964,1722855871542,-500.0,0.00041643,31]
[334241965,1722855871583,-500.0,0.00041643,31]
[334241966,1722855871624,-500.0,0.00041643,31]
[334241967,1722855871663,-574.39,0.00041643,31]
[334241968,1722855871703,-595.43,0.00041643,31]
[334241969,1722855871747,-500.0,0.00041643,31]
[334241970,1722855871790,-500.0,0.00041643,31]
[334241971,1722855871830,-500.0,0.00041643,31]
[334241972,1722855871870,-866.48,0.00041643,31]
[334241973,1722855871912,-500.0,0.00041643,31]
[334241974,1722855871953,-500.0,0.00041643,31]
[334241975,1722855871996,-500.0,0.00041643,31]
[334241976,1722855872032,-500.0,0.00041643,31]
[334241977,1722855872070,-590.56,0.00041643,31]
[334241978,1722855872108,-500.0,0.00041643,31]
[334241979,1722855872146,-512.23739022,0.00041643,31]
[334241980,1722855872184,-500.0,0.00041643,31]
[334241981,1722855872225,-500.0,0.00041643,31]
[334241982,1722855872264,-500.0,0.00041643,31]
[334241983,1722855872302,-500.0,0.00041643,31]
[334241984,1722855872339,-500.0,0.00041643,31]
[334241985,1722855872375,-902.94,0.00041643,31]
[334241986,1722855872415,-500.0,0.00041643,31]
[334241987,1722855872455,-500.0,0.00041643,31]
[334241988,1722855872497,-500.0,0.00041643,31]
[334241989,1722855872535,-500.0,0.00041643,31]
[334241990,1722855872574,-500.0,0.00041643,31]
[334241991,1722855872611,-549.37914528,0.00041643,31]
[334241992,1722855872650,-500.0,0.00041643,31]
[334241993,1722855872689,-500.0,0.00041643,31]
[334241994,1722855872727,-500.0,0.00041643,31]
[334241995,1722855872764,-500.0,0.00041643,31]
[334241996,1722855872803,-500.0,0.00041643,31]
[334241997,1722855872841,-500.0,0.00041643,31]
[334241998,1722855872878,-1022.66,0.00041643,31]
[334241999,1722855872916,-500.0,0.00041643,31]
[334242000,1722855872952,-943.74,0.00041643,31]
[334242001,1722855872992,-500.0,0.00041643,31]
[334242002,1722855873030,-500.0,0.00041643,31]
[334242003,1722855873068,-1053.19,0.00041643,31]
[334242004,1722855873111,-500.0,0.00041643,31]
[334242005,1722855873151,-584.69,0.00041643,31]
[334242006,1722855873198,-1305.1,0.00041643,31]
[334242007,1722855873239,-500.0,0.00041643,31]
[334242008,1722855873282,-500.0,0.00041643,31]
[334242009,1722855873323,-500.0,0.00041643,31]
[334242010,1722855873363,-553.49,0.00041643,31]
[334242011,1722855873402,-500.0,0.00041643,31]
[334242012,1722855873443,-500.0,0.00041643,31]
[334242013,1722855873482,-500.0,0.00041643,31]
[334242014,1722855873521,-625.53207051,0.00041643,31]
[334242015,1722855873561,-513.64515877,0.00041643,31]
[334242016,1722855873604,-500.0,0.00041643,31]
[334242017,1722855873647,-898.41,0.00041643,31]
[334242018,1722855873689,-500.0,0.00041643,31]
[334242019,1722855873733,-500.0,0.00041643,31]
[334242020,1722855873778,-500.0,0.00041643,31]
[334242021,1722855873821,-500.0,0.00041643,31]
[334242022,1722855873863,-500.0,0.00041643,31]
[334242023,1722855873910,-989.94,0.00041643,31]
[334242024,1722855873955,-500.0,0.00041643,31]
[334242025,1722855874003,-500.0,0.00041643,31]
[334242026,1722855874048,-500.0,0.00041643,31]
[334242027,1722855874103,-613.99,0.00041643,31]
[334242028,1722855874150,-500.0,0.00041643,31]
[334242029,1722855874197,-530.57,0.00041643,31]
[334242030,1722855874242,-500.0,0.00041643,31]
[334242031,1722855874289,-500.0,0.00041643,31]
[334242032,1722855874334,-616.76,0.00041643,31]
[334242033,1722855874376,-500.0,0.00041643,31]
[334242034,1722855874419,-694.59,0.00041643,31]
[334242035,1722855874462,-1013.28,0.00041643,31]
[334242036,1722855874512,-500.0,0.00041643,31]
[334242037,1722855874555,-8149.15,0.00041643,31]
[334242038,1722855874742,-500.0,0.00041643,31]
[334242039,1722855874789,-2171.38,0.00041643,31]
[334242040,1722855874833,-867.75,0.00041643,31]
[334242041,1722855874876,-500.0,0.00041643,31]
[334242042,1722855874921,-13964.26,0.00041643,31]
[334242043,1722855874965,-500.0,0.00041643,31]
[334242044,1722855875017,-623.8,0.00041643,31]
[334242045,1722855875061,-500.0,0.00041643,31]
[334242046,1722855875104,-1321.46,0.00041643,31]
[334242047,1722855875147,-500.0,0.00041643,31]
[334242048,1722855875190,-500.0,0.00041643,31]
[334242049,1722855875233,-500.0,0.00041643,31]
[334242050,1722855875275,-781.23,0.00041643,31]
[334242051,1722855875316,-500.0,0.00041643,31]
[334242052,1722855875357,-615.54,0.00041643,31]
[334242053,1722855875399,-952.95,0.00041643,31]
[334242054,1722855875440,-538.82,0.00041643,31]
[334242055,1722855875485,-500.0,0.00041643,31]
[334242056,1722855875528,-500.0,0.00041643,31]
[334242057,1722855875573,-500.0,0.00041643,31]
[334242058,1722855875618,-1921.77,0.00041643,31]
[334242059,1722855875659,-2841.01,0.00041643,31]
[334242060,1722855875700,-500.0,0.00041643,31]
[334242061,1722855875741,-500.0,0.00041643,31]
[334242062,1722855875782,-500.0,0.00041643,31]
[334242063,1722855875823,-629.38,0.00041643,31]
[334242064,1722855875862,-720.86,0.00041643,31]
[334242065,1722855875901,-500.0,0.00041643,31]
[334242066,1722855875943,-500.0,0.00041643,30]
[334242067,1722855875983,-3289.33,0.00041643,31]
[334242068,1722855876021,-702.68,0.00041643,31]
[334242069,1722855876060,-372.15438809,0.00041643,31]
[334242070,1722855876103,-500.0,0.00041643,31]
[334242071,1722855876145,-500.0,0.00041643,31]
[334242072,1722855876191,-500.0,0.00041643,31]
[334242073,1722855876232,-603.67465389,0.00041643,31]
[334242074,1722855876273,-504.15379588,0.00041643,31]
[334242075,1722855876314,-648.48104075,0.00041643,31]
[334242076,1722855876354,-2296.59,0.00041643,31]
[334242077,1722855876394,-1814.25,0.00041643,31]
[334242078,1722855876436,-500.0,0.00041643,31]
[334242079,1722855876483,-500.0,0.00041643,31]
[334242080,1722855876526,-753.6,0.00041643,31]
[334242081,1722855876569,-1640.04,0.00041643,31]
[334242082,1722855876613,-4120.74,0.00041643,31]
[334242083,1722855876656,-500.0,0.00041643,31]
[334242084,1722855876701,-519.48845975,0.00041643,31]
[334242085,1722855876745,-516.99974157,0.00041643,31]
[334242086,1722855876789,-500.0,0.00041643,31]